Organisation Name,Department where exp. Incurred,Service Category Label,Supplier (Beneficiary),Purpose of Expenditure,Procurement (Merchant) Category,Purchase Date,Settlement Date,Transaction Number,Net Amount (�)
Stockport MBC,Corporate and Support Services,Central Services to the public,LIMOUSINES AND TAXICABS,Leasing /Transport Hire,Vehicle Management Leasing ,01.04.2019,16.04.2019,GPC03190000001,25.40
Stockport MBC,Corporate and Support Services,Central Services to the public,LIMOUSINES AND TAXICABS,Leasing /Transport Hire,Vehicle Management Leasing ,01.04.2019,16.04.2019,GPC03190000002,25.00
Stockport MBC,Corporate and Support Services,Central Services to the public,AUTOMOBILE PARKING LOTS AND GARAGES,Travelling Expenses,Human Resources Travel & Subsistence ,15.03.2019,16.04.2019,GPC03190000003,12.00
Stockport MBC,Corporate and Support Services,Central Services to the public,"BRIDGE AND ROAD FEES, TOLLS",Travelling Expenses,Human Resources Travel & Subsistence ,13.03.2019,16.04.2019,GPC03190000004,2.00
Stockport MBC,Corporate and Support Services,Central Services to the public,PASSENGER RAILWAYS,Travelling Expenses,Human Resources Travel & Subsistence ,06.03.2019,16.04.2019,GPC03190000005,172.00
Stockport MBC,Corporate and Support Services,Central Support Costs,ADVERTISING SERVICES,Publicity and Promotion,Facilities & Management Services  ,31.03.2019,16.04.2019,GPC03190000006,355.67
Stockport MBC,Corporate and Support Services,Central Support Costs,ADVERTISING SERVICES,Publicity and Promotion,Facilities & Management Services  ,01.04.2019,16.04.2019,GPC03190000007,87.95
Stockport MBC,Services to People,Childrens & Educational Services,"GROCERY STORES, SUPERMARKETS",Catering Supplies,Catering Food & Beverages ,01.04.2019,16.04.2019,GPC03190000008,20.87
Stockport MBC,Services to People,Childrens & Educational Services,"GROCERY STORES, SUPERMARKETS",Catering Supplies,Catering Food & Beverages ,29.03.2019,16.04.2019,GPC03190000009,14.48
Stockport MBC,Services to People,Childrens & Educational Services,"GROCERY STORES, SUPERMARKETS",Catering Supplies,Catering Food & Beverages ,28.03.2019,16.04.2019,GPC03190000010,9.93
Stockport MBC,Services to People,Childrens & Educational Services,"GROCERY STORES, SUPERMARKETS",Catering Supplies,Catering Food & Beverages ,27.03.2019,16.04.2019,GPC03190000011,15.86
Stockport MBC,Services to People,Childrens & Educational Services,"GROCERY STORES, SUPERMARKETS",Catering Supplies,Catering Food & Beverages ,26.03.2019,16.04.2019,GPC03190000012,4.21
Stockport MBC,Services to People,Childrens & Educational Services,"EATING PLACES, RESTAURANTS",Catering Supplies,Catering Food & Beverages ,26.03.2019,16.04.2019,GPC03190000013,8.40
Stockport MBC,Services to People,Childrens & Educational Services,"GROCERY STORES, SUPERMARKETS",Catering Supplies,Catering Food & Beverages ,25.03.2019,16.04.2019,GPC03190000014,14.76
Stockport MBC,Services to People,Childrens & Educational Services,"GROCERY STORES, SUPERMARKETS",Catering Supplies,Catering Food & Beverages ,19.03.2019,16.04.2019,GPC03190000015,13.25
Stockport MBC,Services to People,Childrens & Educational Services,"GROCERY STORES, SUPERMARKETS",Catering Supplies,Catering Food & Beverages ,18.03.2019,16.04.2019,GPC03190000016,15.61
Stockport MBC,Services to People,Childrens & Educational Services,"GROCERY STORES, SUPERMARKETS",Catering Supplies,Catering Food & Beverages ,15.03.2019,16.04.2019,GPC03190000017,2.55
Stockport MBC,Services to People,Childrens & Educational Services,"GROCERY STORES, SUPERMARKETS",Catering Supplies,Catering Food & Beverages ,14.03.2019,16.04.2019,GPC03190000018,6.75
Stockport MBC,Services to People,Childrens & Educational Services,"GROCERY STORES, SUPERMARKETS",Catering Supplies,Catering Food & Beverages ,13.03.2019,16.04.2019,GPC03190000019,13.91
Stockport MBC,Services to People,Childrens & Educational Services,"GROCERY STORES, SUPERMARKETS",Catering Supplies,Catering Food & Beverages ,11.03.2019,16.04.2019,GPC03190000020,27.52
Stockport MBC,Services to People,Childrens & Educational Services,"GROCERY STORES, SUPERMARKETS",Catering Supplies,Catering Food & Beverages ,08.03.2019,16.04.2019,GPC03190000021,8.44
Stockport MBC,Services to People,Childrens & Educational Services,"GROCERY STORES, SUPERMARKETS",Catering Supplies,Catering Food & Beverages ,07.03.2019,16.04.2019,GPC03190000022,13.64
Stockport MBC,Services to People,Childrens & Educational Services,"GROCERY STORES, SUPERMARKETS",Catering Supplies,Catering Food & Beverages ,06.03.2019,16.04.2019,GPC03190000023,12.97
Stockport MBC,Services to People,Childrens & Educational Services,"GROCERY STORES, SUPERMARKETS",Catering Supplies,Catering Food & Beverages ,05.03.2019,16.04.2019,GPC03190000024,17.52
Stockport MBC,Services to People,Childrens & Educational Services,"GROCERY STORES, SUPERMARKETS",Catering Supplies,Catering Food & Beverages ,04.03.2019,16.04.2019,GPC03190000025,16.90
Stockport MBC,Services to People,Childrens & Educational Services,PREMIER INN,Expenses and Allowances,Human Resources Travel & Subsistence ,26.03.2019,16.04.2019,GPC03190000026,91.00
Stockport MBC,Services to People,Childrens & Educational Services,DIRECT MARKETING-OTHER DIRECT MARKETERS/NOT ELSEW.,Travelling Expenses,Human Resources Travel & Subsistence ,28.03.2019,16.04.2019,GPC03190000027,338.99
Stockport MBC,Services to People,Childrens & Educational Services,PASSENGER RAILWAYS,Furniture and Equipment,Environmental Services Technical Equipment ,26.03.2019,16.04.2019,GPC03190000028,203.50
Stockport MBC,Services to Place,Planning Services,"COURIER SVC-AIR & GROUND, FREIGHT FORWARDERS",Office Expenses,Mail Services�  ,12.03.2019,16.04.2019,GPC03190000029,58.19
Stockport MBC,Corporate and Support Services,Central Support Costs,ELECTRONIC SALES,Furniture and Equipment,Environmental Services Technical Equipment ,08.03.2019,16.04.2019,GPC03190000030,49.99
Stockport MBC,Services to Place,Planning Services,"COURIER SVC-AIR & GROUND, FREIGHT FORWARDERS",Office Expenses,Mail Services�  ,09.03.2019,16.04.2019,GPC03190000031,3.60
Stockport MBC,Corporate and Support Services,Central Services to the public,MISCELLANEOUS PUBLISHING AND PRINTING,Office Expenses,Stationery    ,05.03.2019,16.04.2019,GPC03190000032,83.40
Stockport MBC,Services to People,Childrens & Educational Services,"MUSIC STORES-INSTRUMENTS, PIANOS, SHEET MUSIC",Office Expenses,Stationery    ,26.03.2019,16.04.2019,GPC03190000033,156.00
Stockport MBC,Services to People,Childrens & Educational Services,PASSENGER RAILWAYS,Travelling Expenses,Human Resources Travel & Subsistence ,11.03.2019,16.04.2019,GPC03190000034,152.05
Stockport MBC,Services to People,Childrens & Educational Services,DIRECT MARKETING-CONTINUITY/SUBSCRIPTION MERCHANTS,Office Expenses,Facilities & Management Services  ,01.04.2019,16.04.2019,GPC03190000035,500.00
Stockport MBC,Services to People,Childrens & Educational Services,COMPUTER SOFTWARE STORES,Office Expenses,Facilities & Management Services  ,01.04.2019,16.04.2019,GPC03190000036,59.00
Stockport MBC,Services to People,Childrens & Educational Services,BOOK STORES,Library Equipment,Education Library Books ,29.03.2019,16.04.2019,GPC03190000037,59.94
Stockport MBC,Services to People,Childrens & Educational Services,ADVERTISING SERVICES,Office Expenses,Facilities & Management Services  ,31.03.2019,16.04.2019,GPC03190000038,193.40
Stockport MBC,Services to People,Childrens & Educational Services,DIRECT MARKETING-CONTINUITY/SUBSCRIPTION MERCHANTS,Office Expenses,Facilities & Management Services  ,22.03.2019,16.04.2019,GPC03190000039,500.00
Stockport MBC,Services to People,Childrens & Educational Services,BUSINESS SERVICES-NOT ELSEWHERE CLASSIFIED,Library Equipment,Education Library Books ,21.03.2019,16.04.2019,GPC03190000040,99.00
Stockport MBC,Services to People,Childrens & Educational Services,ADVERTISING SERVICES,Office Expenses,Facilities & Management Services  ,16.03.2019,16.04.2019,GPC03190000041,2.59
Stockport MBC,Services to People,Childrens & Educational Services,DIRECT MARKETING-CONTINUITY/SUBSCRIPTION MERCHANTS,Office Expenses,Facilities & Management Services  ,11.03.2019,16.04.2019,GPC03190000042,500.00
Stockport MBC,Services to People,Childrens & Educational Services,DIRECT MARKETING-CONTINUITY/SUBSCRIPTION MERCHANTS,Office Expenses,Facilities & Management Services  ,11.03.2019,16.04.2019,GPC03190000043,508.73
Stockport MBC,Services to People,Childrens & Educational Services,COMPUTER SOFTWARE STORES,Office Expenses,Facilities & Management Services  ,08.03.2019,16.04.2019,GPC03190000044,59.00
Stockport MBC,Services to People,Childrens & Educational Services,ADVERTISING SERVICES,Office Expenses,Facilities & Management Services  ,09.03.2019,16.04.2019,GPC03190000045,1.79
Stockport MBC,Services to People,Childrens & Educational Services,PASSENGER RAILWAYS,Travelling Expenses,Human Resources Travel & Subsistence ,07.03.2019,16.04.2019,GPC03190000046,141.90
Stockport MBC,Services to People,Childrens & Educational Services,PASSENGER RAILWAYS,Travelling Expenses,Human Resources Travel & Subsistence ,07.03.2019,16.04.2019,GPC03190000047,211.50
Stockport MBC,Services to People,Childrens & Educational Services,PASSENGER RAILWAYS,Travelling Expenses,Human Resources Travel & Subsistence ,22.03.2019,16.04.2019,GPC03190000048,5.10
Stockport MBC,Services to People,Childrens & Educational Services,BUS LINES,Travelling Expenses,Human Resources Travel & Subsistence ,22.03.2019,16.04.2019,GPC03190000049,4.80
Stockport MBC,Services to People,Childrens & Educational Services,AUTOMOBILE PARKING LOTS AND GARAGES,Travelling Expenses,Human Resources Travel & Subsistence ,20.03.2019,16.04.2019,GPC03190000050,7.00
Stockport MBC,Services to Place,Central Support Costs,AUTOMOBILE PARKING LOTS AND GARAGES,Travelling Expenses,Human Resources Travel & Subsistence ,25.03.2019,16.04.2019,GPC03190000051,11.50
Stockport MBC,Services to People,Childrens & Educational Services,DIRECT MARKETING-OTHER DIRECT MARKETERS/NOT ELSEW.,Office Expenses,Stationery    ,28.03.2019,16.04.2019,GPC03190000052,10.58
Stockport MBC,Services to People,Childrens & Educational Services,DIRECT MARKETING-OTHER DIRECT MARKETERS/NOT ELSEW.,Office Expenses,Stationery    ,28.03.2019,16.04.2019,GPC03190000053,-10.58
Stockport MBC,Services to People,Childrens & Educational Services,DIRECT MARKETING-OTHER DIRECT MARKETERS/NOT ELSEW.,Office Expenses,Facilities & Management Services  ,25.03.2019,16.04.2019,GPC03190000054,19.72
Stockport MBC,Services to People,Childrens & Educational Services,BOOK STORES,Office Expenses,Facilities & Management Services  ,15.03.2019,16.04.2019,GPC03190000055,95.44
Stockport MBC,Services to People,Childrens & Educational Services,DIRECT MARKETING-CONTINUITY/SUBSCRIPTION MERCHANTS,Office Expenses,Stationery    ,13.03.2019,16.04.2019,GPC03190000056,7.99
Stockport MBC,Services to People,Childrens & Educational Services,BOOK STORES,Office Expenses,Stationery    ,10.03.2019,16.04.2019,GPC03190000057,18.38
Stockport MBC,Services to People,Childrens & Educational Services,BOOK STORES,Office Expenses,Stationery    ,10.03.2019,16.04.2019,GPC03190000058,4.59
Stockport MBC,Services to People,Childrens & Educational Services,BOOK STORES,Office Expenses,Stationery    ,04.03.2019,16.04.2019,GPC03190000059,7.46
Stockport MBC,Services to People,Childrens & Educational Services,"GROCERY STORES, SUPERMARKETS",Catering Supplies,Catering Food & Beverages ,28.03.2019,16.04.2019,GPC03190000060,10.88
Stockport MBC,Services to People,Childrens & Educational Services,"GROCERY STORES, SUPERMARKETS",Catering Supplies,Catering Food & Beverages ,27.03.2019,16.04.2019,GPC03190000061,40.33
Stockport MBC,Services to People,Childrens & Educational Services,"GROCERY STORES, SUPERMARKETS",Catering Supplies,Catering Food & Beverages ,28.03.2019,16.04.2019,GPC03190000062,58.76
Stockport MBC,Services to People,Childrens & Educational Services,"GROCERY STORES, SUPERMARKETS",Catering Supplies,Catering Food & Beverages ,26.03.2019,16.04.2019,GPC03190000063,19.20
Stockport MBC,Services to People,Childrens & Educational Services,"GROCERY STORES, SUPERMARKETS",Catering Supplies,Catering Food & Beverages ,19.03.2019,16.04.2019,GPC03190000064,6.50
Stockport MBC,Services to People,Childrens & Educational Services,"GROCERY STORES, SUPERMARKETS",Catering Supplies,Catering Food & Beverages ,14.03.2019,16.04.2019,GPC03190000065,61.40
Stockport MBC,Services to People,Childrens & Educational Services,PET SHOPS - PET FOODS AND SUPPLIES,Furniture and Equipment,Environmental Services Technical Equipment ,15.03.2019,16.04.2019,GPC03190000066,20.64
Stockport MBC,Services to People,Childrens & Educational Services,"GROCERY STORES, SUPERMARKETS",Catering Supplies,Catering Food & Beverages ,14.03.2019,16.04.2019,GPC03190000067,6.00
Stockport MBC,Services to People,Childrens & Educational Services,"GROCERY STORES, SUPERMARKETS",Catering Supplies,Catering Food & Beverages ,15.03.2019,16.04.2019,GPC03190000068,58.66
Stockport MBC,Services to People,Childrens & Educational Services,"GROCERY STORES, SUPERMARKETS",Catering Supplies,Catering Food & Beverages ,13.03.2019,16.04.2019,GPC03190000069,4.65
Stockport MBC,Services to People,Childrens & Educational Services,"GROCERY STORES, SUPERMARKETS",Catering Supplies,Catering Food & Beverages ,13.03.2019,16.04.2019,GPC03190000070,20.90
Stockport MBC,Services to People,Childrens & Educational Services,"GROCERY STORES, SUPERMARKETS",Catering Supplies,Catering Food & Beverages ,13.03.2019,16.04.2019,GPC03190000071,55.64
Stockport MBC,Services to People,Childrens & Educational Services,"GROCERY STORES, SUPERMARKETS",Catering Supplies,Catering Food & Beverages ,12.03.2019,16.04.2019,GPC03190000072,21.68
Stockport MBC,Services to People,Childrens & Educational Services,"GROCERY STORES, SUPERMARKETS",Catering Supplies,Catering Food & Beverages ,11.03.2019,16.04.2019,GPC03190000073,15.55
Stockport MBC,Services to People,Childrens & Educational Services,"GROCERY STORES, SUPERMARKETS",Office Expenses,Mail Services�  ,07.03.2019,16.04.2019,GPC03190000074,8.04
Stockport MBC,Services to People,Childrens & Educational Services,"GROCERY STORES, SUPERMARKETS",Office Expenses,Mail Services�  ,07.03.2019,16.04.2019,GPC03190000075,76.56
Stockport MBC,Services to People,Childrens & Educational Services,"GROCERY STORES, SUPERMARKETS",Catering Supplies,Catering Food & Beverages ,07.03.2019,16.04.2019,GPC03190000076,16.00
Stockport MBC,Services to People,Childrens & Educational Services,"GROCERY STORES, SUPERMARKETS",Catering Supplies,Catering Food & Beverages ,06.03.2019,16.04.2019,GPC03190000077,17.65
Stockport MBC,Services to People,Childrens & Educational Services,"GROCERY STORES, SUPERMARKETS",Catering Supplies,Catering Food & Beverages ,05.03.2019,16.04.2019,GPC03190000078,11.35
Stockport MBC,Services to People,Childrens & Educational Services,"GROCERY STORES, SUPERMARKETS",Catering Supplies,Catering Food & Beverages ,05.03.2019,16.04.2019,GPC03190000079,14.78
Stockport MBC,Services to People,Childrens & Educational Services,DISCOUNT STORES,Furniture and Equipment,Environmental Services Technical Equipment ,04.03.2019,16.04.2019,GPC03190000080,9.34
Stockport MBC,Corporate and Support Services,Corporate & Democratic Core,DIRECT MARKETING-OTHER DIRECT MARKETERS/NOT ELSEW.,Furniture and Equipment,Environmental Services Technical Equipment ,23.03.2019,16.04.2019,GPC03190000081,51.98
Stockport MBC,Corporate and Support Services,Corporate & Democratic Core,DIRECT MARKETING-OTHER DIRECT MARKETERS/NOT ELSEW.,Furniture and Equipment,Environmental Services Technical Equipment ,24.03.2019,16.04.2019,GPC03190000082,32.94
Stockport MBC,Corporate and Support Services,Corporate & Democratic Core,BOOK STORES,Expenses and Allowances,Catering  ,19.03.2019,16.04.2019,GPC03190000083,18.76
Stockport MBC,Corporate and Support Services,Corporate & Democratic Core,BOOK STORES,Expenses and Allowances,Catering  ,18.03.2019,16.04.2019,GPC03190000084,23.19
Stockport MBC,Corporate and Support Services,Corporate & Democratic Core,"CONSULTING, MANAGEMENT, AND PUBLIC RELATIONS SVCS",Furniture and Equipment,Environmental Services Technical Equipment ,15.03.2019,16.04.2019,GPC03190000085,150.50
Stockport MBC,Corporate and Support Services,Central Support Costs,DIRECT MARKETING-OTHER DIRECT MARKETERS/NOT ELSEW.,Office Expenses,Stationery    ,28.03.2019,16.04.2019,GPC03190000086,24.76
Stockport MBC,Corporate and Support Services,Corporate & Democratic Core,DIRECT MARKETING-OTHER DIRECT MARKETERS/NOT ELSEW.,Furniture and Equipment,Environmental Services Technical Equipment ,27.03.2019,16.04.2019,GPC03190000087,29.94
Stockport MBC,Corporate and Support Services,Corporate & Democratic Core,DIRECT MARKETING-OTHER DIRECT MARKETERS/NOT ELSEW.,Furniture and Equipment,Environmental Services Technical Equipment ,27.03.2019,16.04.2019,GPC03190000088,29.94
Stockport MBC,Corporate and Support Services,Central Support Costs,"ATTORNEYS, LEGAL SERVICES",Legal Fees,Legal Services  ,15.03.2019,16.04.2019,GPC03190000089,246.00
Stockport MBC,Services to Place,Central Support Costs,"COURIER SVC-AIR & GROUND, FREIGHT FORWARDERS",Office Expenses,Mail Services�  ,14.03.2019,16.04.2019,GPC03190000090,27.59
Stockport MBC,Corporate and Support Services,Central Support Costs,BOOK STORES,Furniture and Equipment,Environmental Services Technical Equipment ,05.03.2019,16.04.2019,GPC03190000091,14.16
Stockport MBC,Services to Place,Highways & Transport Services,DEPARTMENT STORES,Expenses and Allowances,Catering  ,05.03.2019,16.04.2019,GPC03190000092,325.00
Stockport MBC,Corporate and Support Services,Central Support Costs,DIRECT MARKETING-OTHER DIRECT MARKETERS/NOT ELSEW.,Furniture and Equipment,Environmental Services Technical Equipment ,04.03.2019,16.04.2019,GPC03190000093,6.03
Stockport MBC,Corporate and Support Services,Cultural & Related Services,"GROCERY STORES, SUPERMARKETS",Catering Supplies,Catering  ,19.03.2019,16.04.2019,GPC03190000094,25.18
Stockport MBC,Corporate and Support Services,Cultural & Related Services,"GROCERY STORES, SUPERMARKETS",Catering Supplies,Catering  ,07.03.2019,16.04.2019,GPC03190000095,3.75
Stockport MBC,Corporate and Support Services,Cultural & Related Services,DISCOUNT STORES,Publicity and Promotion,Arts & Leisure Services  ,28.03.2019,16.04.2019,GPC03190000096,8.34
Stockport MBC,Corporate and Support Services,Cultural & Related Services,HARDWARE STORES,Furniture and Equipment,Environmental Services Technical Equipment ,26.03.2019,16.04.2019,GPC03190000097,8.34
Stockport MBC,Corporate and Support Services,Cultural & Related Services,BOOK STORES,Furniture and Equipment,Environmental Services Technical Equipment ,18.03.2019,16.04.2019,GPC03190000098,9.16
Stockport MBC,Corporate and Support Services,Cultural & Related Services,HARDWARE STORES,Furniture and Equipment,Environmental Services Technical Equipment ,18.03.2019,16.04.2019,GPC03190000099,8.34
Stockport MBC,Corporate and Support Services,Cultural & Related Services,"GROCERY STORES, SUPERMARKETS",Publicity and Promotion,Arts & Leisure Services  ,13.03.2019,16.04.2019,GPC03190000100,13.42
Stockport MBC,Services to People,Childrens & Educational Services,"FREIGHT CARRIER,TRUCKING-LCL/LNG DIST, MVG/STORAGE",Office Expenses,Mail Services�  ,01.04.2019,16.04.2019,GPC03190000101,6.49
Stockport MBC,Services to People,Childrens & Educational Services,DIRECT MARKETING-CONTINUITY/SUBSCRIPTION MERCHANTS,Office Expenses,Stationery    ,18.03.2019,16.04.2019,GPC03190000102,7.99
Stockport MBC,Services to People,Childrens & Educational Services,BOOK STORES,Office Expenses,Stationery    ,15.03.2019,16.04.2019,GPC03190000103,4.99
Stockport MBC,Services to People,Childrens & Educational Services,PASSENGER RAILWAYS,Travelling Expenses,Human Resources Travel & Subsistence ,13.03.2019,16.04.2019,GPC03190000104,69.00
Stockport MBC,Services to People,Childrens & Educational Services,PASSENGER RAILWAYS,Travelling Expenses,Human Resources Travel & Subsistence ,13.03.2019,16.04.2019,GPC03190000105,83.00
Stockport MBC,Services to People,Childrens & Educational Services,PASSENGER RAILWAYS,Travelling Expenses,Human Resources Travel & Subsistence ,13.03.2019,16.04.2019,GPC03190000106,65.00
Stockport MBC,Services to People,Childrens & Educational Services,DIRECT MARKETING-CONTINUITY/SUBSCRIPTION MERCHANTS,Office Expenses,Stationery    ,11.03.2019,16.04.2019,GPC03190000107,0.99
Stockport MBC,Services to People,Childrens & Educational Services,BOOK STORES,Office Expenses,Stationery    ,12.03.2019,16.04.2019,GPC03190000108,31.88
Stockport MBC,Services to People,Childrens & Educational Services,CATERERS,Office Expenses,Stationery    ,05.03.2019,16.04.2019,GPC03190000109,42.67
Stockport MBC,Services to People,Childrens & Educational Services,PASSENGER RAILWAYS,Travelling Expenses,Human Resources Travel & Subsistence ,27.03.2019,16.04.2019,GPC03190000110,27.15
Stockport MBC,Services to People,Childrens & Educational Services,"GIFT, CARD, NOVELTY AND SOUVENIR SHOPS",Fees and Charges,Education  ,07.03.2019,16.04.2019,GPC03190000111,6.00
Stockport MBC,Services to People,Childrens & Educational Services,"EATING PLACES, RESTAURANTS",Fees and Charges,Education  ,07.03.2019,16.04.2019,GPC03190000112,15.40
Stockport MBC,Services to People,Adult Social Care,PASSENGER RAILWAYS,Travelling Expenses,Human Resources Travel & Subsistence ,06.03.2019,16.04.2019,GPC03190000113,136.00
Stockport MBC,Services to People,Adult Social Care,TRAVELODGE,Travelling Expenses,Human Resources Travel & Subsistence ,06.03.2019,16.04.2019,GPC03190000114,173.45
Stockport MBC,Services to People,Adult Social Care,TRAVELODGE,Travelling Expenses,Human Resources Travel & Subsistence ,06.03.2019,16.04.2019,GPC03190000115,170.45
Stockport MBC,Services to People,Adult Social Care,TRAVELODGE,Travelling Expenses,Human Resources Travel & Subsistence ,06.03.2019,16.04.2019,GPC03190000116,-167.95
Stockport MBC,Services to People,Childrens & Educational Services,"GROCERY STORES, SUPERMARKETS",Catering Supplies,Catering Food & Beverages ,01.04.2019,16.04.2019,GPC03190000117,13.84
Stockport MBC,Services to People,Childrens & Educational Services,MISCELLANEOUS AND SPECIALTY RETAIL STORES,Furniture and Equipment,Environmental Services Technical Equipment ,01.04.2019,16.04.2019,GPC03190000118,25.12
Stockport MBC,Services to People,Childrens & Educational Services,MISCELLANEOUS AND SPECIALTY RETAIL STORES,Furniture and Equipment,Environmental Services Technical Equipment ,01.04.2019,16.04.2019,GPC03190000119,8.96
Stockport MBC,Services to People,Childrens & Educational Services,"CLUBS-CNTRY,MBRSHIP(ATHLET,REC,SPRTS,PRIVATE GOLF",Fees and Charges,Education  ,01.04.2019,16.04.2019,GPC03190000120,21.00
Stockport MBC,Services to People,Childrens & Educational Services,BOOK STORES,Furniture and Equipment,Environmental Services Technical Equipment ,28.03.2019,16.04.2019,GPC03190000121,31.96
Stockport MBC,Services to People,Childrens & Educational Services,"CLUBS-CNTRY,MBRSHIP(ATHLET,REC,SPRTS,PRIVATE GOLF",Fees and Charges,Education  ,27.03.2019,16.04.2019,GPC03190000122,-146.83
Stockport MBC,Services to People,Childrens & Educational Services,BOOK STORES,Furniture and Equipment,Environmental Services Technical Equipment ,27.03.2019,16.04.2019,GPC03190000123,3.18
Stockport MBC,Services to People,Childrens & Educational Services,"CLUBS-CNTRY,MBRSHIP(ATHLET,REC,SPRTS,PRIVATE GOLF",Fees and Charges,Education  ,21.03.2019,16.04.2019,GPC03190000124,146.83
Stockport MBC,Services to People,Childrens & Educational Services,DIRECT MARKETING-OTHER DIRECT MARKETERS/NOT ELSEW.,Furniture and Equipment,Environmental Services Technical Equipment ,15.03.2019,16.04.2019,GPC03190000125,17.48
Stockport MBC,Services to People,Childrens & Educational Services,DISCOUNT STORES,Furniture and Equipment,Environmental Services Technical Equipment ,04.03.2019,16.04.2019,GPC03190000126,17.94
Stockport MBC,Services to People,Childrens & Educational Services,"GROCERY STORES, SUPERMARKETS",Cleaning,Cleaning & Janitorial  ,27.03.2019,16.04.2019,GPC03190000127,19.00
Stockport MBC,Services to People,Childrens & Educational Services,POSTAL SERVICES-GOVERNMENT ONLY,Office Expenses,Mail Services�  ,27.03.2019,16.04.2019,GPC03190000128,14.64
Stockport MBC,Services to People,Childrens & Educational Services,"DRAPERY, UPOLSTERY, AND WINDOW COVERINGS STORES",Furniture and Equipment,Furniture & Soft Furnishings  ,21.03.2019,16.04.2019,GPC03190000129,46.91
Stockport MBC,Services to People,Childrens & Educational Services,SCHOOLS & EDUCATIONAL SVC-NOT ELSEWHERE CLASSIFIED,Staff Training,Human Resources  ,21.03.2019,16.04.2019,GPC03190000130,30.00
Stockport MBC,Services to People,Childrens & Educational Services,DIRECT MARKETING-OTHER DIRECT MARKETERS/NOT ELSEW.,Library Equipment,Education Library Books ,17.03.2019,16.04.2019,GPC03190000131,81.70
Stockport MBC,Services to People,Childrens & Educational Services,FAST FOOD RESTAURANTS,Fees and Charges,Education  ,14.03.2019,16.04.2019,GPC03190000132,60.00
Stockport MBC,Services to People,Childrens & Educational Services,POSTAL SERVICES-GOVERNMENT ONLY,Office Expenses,Mail Services�  ,04.03.2019,16.04.2019,GPC03190000133,31.08
Stockport MBC,Services to People,Childrens & Educational Services,DIRECT MARKETING-OTHER DIRECT MARKETERS/NOT ELSEW.,Library Equipment,Education Library Books ,04.03.2019,16.04.2019,GPC03190000134,-3.99
Stockport MBC,Services to People,Childrens & Educational Services,DIRECT MARKETING-OTHER DIRECT MARKETERS/NOT ELSEW.,Library Equipment,Education Library Books ,01.03.2019,16.04.2019,GPC03190000135,11.98
Stockport MBC,Services to People,Adult Social Care,"BUILDING MATERIALS, LUMBER STORES",Furniture and Equipment,Environmental Services Technical Equipment ,21.03.2019,16.04.2019,GPC03190000136,175.34
Stockport MBC,Services to People,Adult Social Care,"BUILDING MATERIALS, LUMBER STORES",Furniture and Equipment,Environmental Services Technical Equipment ,21.03.2019,16.04.2019,GPC03190000137,-69.00
Stockport MBC,Services to People,Adult Social Care,"EQUIP, FURNITURE, HOME FURNSHNGS STRS (EXCPT APPL)",Furniture and Equipment,Furniture & Soft Furnishings  ,01.03.2019,16.04.2019,GPC03190000138,376.25
Stockport MBC,Services to People,Childrens & Educational Services,PASSENGER RAILWAYS,Care Payments,Social Community Care Supplies & Services  ,29.03.2019,16.04.2019,GPC03190000139,24.55
Stockport MBC,Services to People,Childrens & Educational Services,EASYJET,Travelling Expenses,Human Resources Travel & Subsistence ,27.03.2019,16.04.2019,GPC03190000140,117.52
Stockport MBC,Services to People,Childrens & Educational Services,PREMIER INN,Care Payments,Social Community Care Supplies & Services  ,25.03.2019,16.04.2019,GPC03190000141,90.50
Stockport MBC,Services to People,Childrens & Educational Services,"LODGING-HOTELS,MOTELS,RESORTS-NOT CLASSIFIED",Third party payments - Private/Voluntary Sector,Social Community Care Supplies & Services  ,26.03.2019,16.04.2019,GPC03190000142,137.28
Stockport MBC,Services to People,Childrens & Educational Services,PASSENGER RAILWAYS,Travelling Expenses,Human Resources Travel & Subsistence ,22.03.2019,16.04.2019,GPC03190000143,70.50
Stockport MBC,Services to People,Childrens & Educational Services,PASSENGER RAILWAYS,Care Payments,Social Community Care Supplies & Services  ,22.03.2019,16.04.2019,GPC03190000144,24.55
Stockport MBC,Services to People,Childrens & Educational Services,TRAVELODGE,Care Payments,Social Community Care Supplies & Services  ,21.03.2019,16.04.2019,GPC03190000145,220.00
Stockport MBC,Services to People,Childrens & Educational Services,"THEATRICAL PRODUCERS(EXCL MOTION PIX),TICKET AGNCY",Care Payments,Social Community Care Supplies & Services  ,20.03.2019,16.04.2019,GPC03190000146,5.50
Stockport MBC,Services to People,Childrens & Educational Services,FINES,Care Payments,Social Community Care Supplies & Services  ,14.03.2019,16.04.2019,GPC03190000147,70.00
Stockport MBC,Services to People,Childrens & Educational Services,PASSENGER RAILWAYS,Care Payments,Social Community Care Supplies & Services  ,15.03.2019,16.04.2019,GPC03190000148,24.55
Stockport MBC,Services to People,Childrens & Educational Services,PASSENGER RAILWAYS,Care Payments,Social Community Care Supplies & Services  ,15.03.2019,16.04.2019,GPC03190000149,20.55
Stockport MBC,Services to People,Childrens & Educational Services,PASSENGER RAILWAYS,Care Payments,Social Community Care Supplies & Services  ,15.03.2019,16.04.2019,GPC03190000150,7.45
Stockport MBC,Services to People,Childrens & Educational Services,PASSENGER RAILWAYS,Travelling Expenses,Human Resources Travel & Subsistence ,14.03.2019,16.04.2019,GPC03190000151,62.10
Stockport MBC,Services to People,Childrens & Educational Services,PREMIER INN,Expenses and Allowances,Catering  ,13.03.2019,16.04.2019,GPC03190000152,75.50
Stockport MBC,Services to People,Childrens & Educational Services,"FREIGHT CARRIER,TRUCKING-LCL/LNG DIST, MVG/STORAGE",Care Payments,Social Community Care Supplies & Services  ,14.03.2019,16.04.2019,GPC03190000153,227.00
Stockport MBC,Services to People,Childrens & Educational Services,"SCHOOLS, BUSINESS AND SECRETARIAL",Expenses and Allowances,Human Resources Training & Conferences ,13.03.2019,16.04.2019,GPC03190000154,253.80
Stockport MBC,Services to People,Childrens & Educational Services,TRAVELODGE,Care Payments,Social Community Care Supplies & Services  ,12.03.2019,16.04.2019,GPC03190000155,83.50
Stockport MBC,Services to People,Childrens & Educational Services,PASSENGER RAILWAYS,Care Payments,Social Community Care Supplies & Services  ,11.03.2019,16.04.2019,GPC03190000156,7.05
Stockport MBC,Services to People,Childrens & Educational Services,PASSENGER RAILWAYS,Travelling Expenses,Human Resources Travel & Subsistence ,11.03.2019,16.04.2019,GPC03190000157,5.45
Stockport MBC,Services to People,Childrens & Educational Services,PASSENGER RAILWAYS,Travelling Expenses,Human Resources Travel & Subsistence ,11.03.2019,16.04.2019,GPC03190000158,329.10
Stockport MBC,Services to People,Childrens & Educational Services,PASSENGER RAILWAYS,Care Payments,Social Community Care Supplies & Services  ,08.03.2019,16.04.2019,GPC03190000159,24.55
Stockport MBC,Services to People,Childrens & Educational Services,PASSENGER RAILWAYS,Travelling Expenses,Human Resources Travel & Subsistence ,08.03.2019,16.04.2019,GPC03190000160,136.10
Stockport MBC,Services to People,Childrens & Educational Services,PASSENGER RAILWAYS,Care Payments,Social Community Care Supplies & Services  ,08.03.2019,16.04.2019,GPC03190000161,24.55
Stockport MBC,Services to People,Childrens & Educational Services,"LODGING-HOTELS,MOTELS,RESORTS-NOT CLASSIFIED",Third party payments - Private/Voluntary Sector,Social Community Care Supplies & Services  ,09.03.2019,16.04.2019,GPC03190000162,52.00
Stockport MBC,Services to People,Childrens & Educational Services,PREMIER INN,Third party payments - Private/Voluntary Sector,Social Community Care Supplies & Services  ,06.03.2019,16.04.2019,GPC03190000163,254.00
Stockport MBC,Services to People,Childrens & Educational Services,"FLORIST SUPPLIES,NURSERY STOCK & FLOWERS",Furniture and Equipment,Furniture & Soft Furnishings  ,07.03.2019,16.04.2019,GPC03190000164,26.29
Stockport MBC,Services to People,Childrens & Educational Services,BOOK STORES,Furniture and Equipment,Environmental Services Technical Equipment ,07.03.2019,16.04.2019,GPC03190000165,48.21
Stockport MBC,Services to People,Childrens & Educational Services,"SCHOOLS, BUSINESS AND SECRETARIAL",Care Payments,Social Community Care Supplies & Services  ,06.03.2019,16.04.2019,GPC03190000166,253.80
Stockport MBC,Services to People,Childrens & Educational Services,EASYJET,Care Payments,Social Community Care Supplies & Services  ,06.03.2019,16.04.2019,GPC03190000167,88.74
Stockport MBC,Services to People,Childrens & Educational Services,TRAVELODGE,Care Payments,Social Community Care Supplies & Services  ,06.03.2019,16.04.2019,GPC03190000168,59.50
Stockport MBC,Services to People,Childrens & Educational Services,EASYJET,Travelling Expenses,Human Resources Travel & Subsistence ,06.03.2019,16.04.2019,GPC03190000169,145.04
Stockport MBC,Services to People,Childrens & Educational Services,PASSENGER RAILWAYS,Travelling Expenses,Human Resources Travel & Subsistence ,06.03.2019,16.04.2019,GPC03190000170,183.35
Stockport MBC,Services to People,Childrens & Educational Services,PASSENGER RAILWAYS,Travelling Expenses,Human Resources Travel & Subsistence ,05.03.2019,16.04.2019,GPC03190000171,382.80
Stockport MBC,Services to People,Childrens & Educational Services,PASSENGER RAILWAYS,Travelling Expenses,Human Resources Travel & Subsistence ,05.03.2019,16.04.2019,GPC03190000172,183.50
Stockport MBC,Services to People,Childrens & Educational Services,PASSENGER RAILWAYS,Travelling Expenses,Human Resources Travel & Subsistence ,05.03.2019,16.04.2019,GPC03190000173,83.45
Stockport MBC,Services to People,Childrens & Educational Services,PREMIER INN,Care Payments,Social Community Care Supplies & Services  ,03.03.2019,16.04.2019,GPC03190000174,-19.00
Stockport MBC,Services to People,Childrens & Educational Services,"BUYING/SHOPPING CLUBS, SERVICES",Care Payments,Social Community Care Supplies & Services  ,01.03.2019,16.04.2019,GPC03190000175,28.00
Stockport MBC,Services to People,Childrens & Educational Services,PASSENGER RAILWAYS,Care Payments,Social Community Care Supplies & Services  ,01.03.2019,16.04.2019,GPC03190000176,20.55
Stockport MBC,Services to People,Childrens & Educational Services,PREMIER INN,Care Payments,Social Community Care Supplies & Services  ,01.03.2019,16.04.2019,GPC03190000177,156.00
Stockport MBC,Services to People,Adult Social Care,FINES,Legal Fees,Legal Services  ,21.03.2019,16.04.2019,GPC03190000178,75.00
Stockport MBC,Corporate and Support Services,Central Support Costs,"LODGING-HOTELS,MOTELS,RESORTS-NOT CLASSIFIED",Care Payments,Social Community Care Supplies & Services  ,14.03.2019,16.04.2019,GPC03190000179,"2,450.00"
Stockport MBC,Services to People,Adult Social Care,HOME SUPPLY WAREHOUSE STORES,Furniture and Equipment,Environmental Services Technical Equipment ,13.03.2019,16.04.2019,GPC03190000180,30.00
Stockport MBC,Services to People,Childrens & Educational Services,"GROCERY STORES, SUPERMARKETS",Catering Supplies,Catering Food & Beverages ,01.04.2019,16.04.2019,GPC03190000181,41.01
Stockport MBC,Services to People,Childrens & Educational Services,"GROCERY STORES, SUPERMARKETS",Catering Supplies,Catering Food & Beverages ,25.03.2019,16.04.2019,GPC03190000182,40.16
Stockport MBC,Services to People,Childrens & Educational Services,"GROCERY STORES, SUPERMARKETS",Catering Supplies,Catering Food & Beverages ,20.03.2019,16.04.2019,GPC03190000183,66.44
Stockport MBC,Services to People,Childrens & Educational Services,"GROCERY STORES, SUPERMARKETS",Catering Supplies,Catering Food & Beverages ,18.03.2019,16.04.2019,GPC03190000184,44.40
Stockport MBC,Services to People,Childrens & Educational Services,"GROCERY STORES, SUPERMARKETS",Catering Supplies,Catering Food & Beverages ,11.03.2019,16.04.2019,GPC03190000185,54.15
Stockport MBC,Services to People,Childrens & Educational Services,"GROCERY STORES, SUPERMARKETS",Catering Supplies,Catering Food & Beverages ,04.03.2019,16.04.2019,GPC03190000186,60.66
Stockport MBC,Services to People,Childrens & Educational Services,"LODGING-HOTELS,MOTELS,RESORTS-NOT CLASSIFIED",Expenses and Allowances,Human Resources Training & Conferences ,01.04.2019,16.04.2019,GPC03190000187,163.00
Stockport MBC,Services to People,Childrens & Educational Services,"COLLEGES, UNIV, PRO SCHOOLS, JUNIOR COLLEGES",Furniture and Equipment,Furniture & Soft Furnishings  ,22.03.2019,16.04.2019,GPC03190000188,62.02
Stockport MBC,Services to People,Childrens & Educational Services,BOOK STORES,Information and Communications Technology,Information Communication Technology  ,15.03.2019,16.04.2019,GPC03190000189,37.97
Stockport MBC,Services to People,Childrens & Educational Services,BOOK STORES,Information and Communications Technology,Information Communication Technology  ,15.03.2019,16.04.2019,GPC03190000190,37.97
Stockport MBC,Services to People,Childrens & Educational Services,BOOK STORES,Information and Communications Technology,Information Communication Technology  ,15.03.2019,16.04.2019,GPC03190000191,37.97
Stockport MBC,Services to People,Childrens & Educational Services,BOOK STORES,Information and Communications Technology,Information Communication Technology  ,15.03.2019,16.04.2019,GPC03190000192,37.97
Stockport MBC,Services to People,Childrens & Educational Services,BOOK STORES,Information and Communications Technology,Information Communication Technology  ,15.03.2019,16.04.2019,GPC03190000193,37.97
Stockport MBC,Services to People,Childrens & Educational Services,"AIR CARRIERS, AIRLINES-NOT ELSEWHERE CLASSIFIED",Travelling Expenses,Human Resources Travel & Subsistence ,11.03.2019,16.04.2019,GPC03190000194,106.99
Stockport MBC,Services to People,Childrens & Educational Services,"LODGING-HOTELS,MOTELS,RESORTS-NOT CLASSIFIED",Expenses and Allowances,Human Resources Training & Conferences ,04.03.2019,16.04.2019,GPC03190000195,250.00
Stockport MBC,Services to People,Childrens & Educational Services,PASSENGER RAILWAYS,Travelling Expenses,Human Resources Travel & Subsistence ,01.03.2019,16.04.2019,GPC03190000196,105.10
Stockport MBC,Services to People,Childrens & Educational Services,"AIR CARRIERS, AIRLINES-NOT ELSEWHERE CLASSIFIED",Care Payments,Social Community Care Supplies & Services  ,27.03.2019,16.04.2019,GPC03190000197,329.80
Stockport MBC,Services to Place,Central Support Costs,LIMOUSINES AND TAXICABS,Travelling Expenses,Human Resources Travel & Subsistence ,11.03.2019,16.04.2019,GPC03190000198,-60.00
Stockport MBC,Services to Place,Central Support Costs,AUTOMOBILE PARKING LOTS AND GARAGES,Travelling Expenses,Human Resources Travel & Subsistence ,08.03.2019,16.04.2019,GPC03190000199,56.99
Stockport MBC,Services to Place,Central Support Costs,LIMOUSINES AND TAXICABS,Travelling Expenses,Human Resources Travel & Subsistence ,08.03.2019,16.04.2019,GPC03190000200,60.00
Stockport MBC,Services to People,Childrens & Educational Services,PREMIER INN,Expenses and Allowances,Human Resources Training & Conferences ,25.03.2019,16.04.2019,GPC03190000201,169.00
Stockport MBC,Services to People,Childrens & Educational Services,"GROCERY STORES, SUPERMARKETS",Furniture and Equipment,Furniture & Soft Furnishings  ,26.03.2019,16.04.2019,GPC03190000202,35.92
Stockport MBC,Services to People,Childrens & Educational Services,"GROCERY STORES, SUPERMARKETS",Furniture and Equipment,Furniture & Soft Furnishings  ,20.03.2019,16.04.2019,GPC03190000203,42.84
Stockport MBC,Services to People,Childrens & Educational Services,STATIONERY/OFFICE SUPPLIES/PRINTING & WRITING PAP.,Furniture and Equipment,Furniture & Soft Furnishings  ,18.03.2019,16.04.2019,GPC03190000204,190.70
Stockport MBC,Services to People,Childrens & Educational Services,"GROCERY STORES, SUPERMARKETS",Furniture and Equipment,Furniture & Soft Furnishings  ,15.03.2019,16.04.2019,GPC03190000205,53.94
Stockport MBC,Services to People,Childrens & Educational Services,"GROCERY STORES, SUPERMARKETS",Furniture and Equipment,Furniture & Soft Furnishings  ,15.03.2019,16.04.2019,GPC03190000206,4.50
Stockport MBC,Services to People,Childrens & Educational Services,COMPUTER SOFTWARE STORES,Furniture and Equipment,Furniture & Soft Furnishings  ,11.03.2019,16.04.2019,GPC03190000207,77.98
Stockport MBC,Services to People,Childrens & Educational Services,STATIONERY/OFFICE SUPPLIES/PRINTING & WRITING PAP.,Furniture and Equipment,Furniture & Soft Furnishings  ,11.03.2019,16.04.2019,GPC03190000208,60.90
Stockport MBC,Services to People,Childrens & Educational Services,"GROCERY STORES, SUPERMARKETS",Catering Supplies,Catering Food & Beverages ,27.03.2019,16.04.2019,GPC03190000209,12.07
Stockport MBC,Services to People,Childrens & Educational Services,"GROCERY STORES, SUPERMARKETS",Catering Supplies,Catering Food & Beverages ,25.03.2019,16.04.2019,GPC03190000210,15.74
Stockport MBC,Services to People,Childrens & Educational Services,"GROCERY STORES, SUPERMARKETS",Catering Supplies,Catering Food & Beverages ,21.03.2019,16.04.2019,GPC03190000211,3.00
Stockport MBC,Services to People,Childrens & Educational Services,"GROCERY STORES, SUPERMARKETS",Catering Supplies,Catering Food & Beverages ,20.03.2019,16.04.2019,GPC03190000212,21.84
Stockport MBC,Services to People,Childrens & Educational Services,"GROCERY STORES, SUPERMARKETS",Catering Supplies,Catering Food & Beverages ,18.03.2019,16.04.2019,GPC03190000213,20.34
Stockport MBC,Services to People,Childrens & Educational Services,"GROCERY STORES, SUPERMARKETS",Catering Supplies,Catering Food & Beverages ,13.03.2019,16.04.2019,GPC03190000214,13.45
Stockport MBC,Services to People,Childrens & Educational Services,"GROCERY STORES, SUPERMARKETS",Catering Supplies,Catering Food & Beverages ,11.03.2019,16.04.2019,GPC03190000215,17.30
Stockport MBC,Services to People,Childrens & Educational Services,"GROCERY STORES, SUPERMARKETS",Catering Supplies,Catering Food & Beverages ,07.03.2019,16.04.2019,GPC03190000216,23.19
Stockport MBC,Services to People,Childrens & Educational Services,"GROCERY STORES, SUPERMARKETS",Catering Supplies,Catering Food & Beverages ,04.03.2019,16.04.2019,GPC03190000217,19.74
Stockport MBC,Services to People,Childrens & Educational Services,RECORD SHOPS,Publicity and Promotion,Arts & Leisure Services  ,29.03.2019,16.04.2019,GPC03190000218,3.99
Stockport MBC,Services to People,Childrens & Educational Services,RECREATION SERVICES (NOT ELSEWHERE CLASSIFIED),Publicity and Promotion,Arts & Leisure Services  ,29.03.2019,16.04.2019,GPC03190000219,90.00
Stockport MBC,Services to People,Childrens & Educational Services,"BUYING/SHOPPING CLUBS, SERVICES",Publicity and Promotion,Arts & Leisure Services  ,29.03.2019,16.04.2019,GPC03190000220,16.00
Stockport MBC,Services to People,Childrens & Educational Services,"BUYING/SHOPPING CLUBS, SERVICES",Publicity and Promotion,Arts & Leisure Services  ,29.03.2019,16.04.2019,GPC03190000221,8.00
Stockport MBC,Services to People,Childrens & Educational Services,"CLUBS-CNTRY,MBRSHIP(ATHLET,REC,SPRTS,PRIVATE GOLF",Publicity and Promotion,Arts & Leisure Services  ,29.03.2019,16.04.2019,GPC03190000222,20.00
Stockport MBC,Services to People,Childrens & Educational Services,RECREATIONAL AND SPORTING CAMPS,Publicity and Promotion,Arts & Leisure Services  ,29.03.2019,16.04.2019,GPC03190000223,160.00
Stockport MBC,Services to People,Childrens & Educational Services,SERVICE STATIONS WITH OR WITHOUT ANCILLARY SERVICE,Publicity and Promotion,Arts & Leisure Services  ,29.03.2019,16.04.2019,GPC03190000224,20.00
Stockport MBC,Services to People,Childrens & Educational Services,RECREATION SERVICES (NOT ELSEWHERE CLASSIFIED),Publicity and Promotion,Arts & Leisure Services  ,30.03.2019,16.04.2019,GPC03190000225,78.00
Stockport MBC,Services to People,Childrens & Educational Services,"GROCERY STORES, SUPERMARKETS",Catering Supplies,Catering Food & Beverages ,30.03.2019,16.04.2019,GPC03190000226,239.24
Stockport MBC,Services to People,Childrens & Educational Services,SERVICE STATIONS WITH OR WITHOUT ANCILLARY SERVICE,Publicity and Promotion,Arts & Leisure Services  ,29.03.2019,16.04.2019,GPC03190000227,2.93
Stockport MBC,Services to People,Childrens & Educational Services,FAST FOOD RESTAURANTS,Publicity and Promotion,Arts & Leisure Services  ,28.03.2019,16.04.2019,GPC03190000228,29.98
Stockport MBC,Services to People,Childrens & Educational Services,WOMEN'S READY TO WEAR STORES,Care Payments,Social Community Care Supplies & Services  ,28.03.2019,16.04.2019,GPC03190000229,13.04
Stockport MBC,Services to People,Childrens & Educational Services,BOOK STORES,Care Payments,Social Community Care Supplies & Services  ,27.03.2019,16.04.2019,GPC03190000230,209.95
Stockport MBC,Services to People,Childrens & Educational Services,"BUYING/SHOPPING CLUBS, SERVICES",Publicity and Promotion,Arts & Leisure Services  ,27.03.2019,16.04.2019,GPC03190000231,31.00
Stockport MBC,Services to People,Childrens & Educational Services,"BUILDING MATERIALS, LUMBER STORES",Furniture and Equipment,Environmental Services Technical Equipment ,25.03.2019,16.04.2019,GPC03190000232,27.66
Stockport MBC,Services to People,Childrens & Educational Services,RECREATION SERVICES (NOT ELSEWHERE CLASSIFIED),Publicity and Promotion,Arts & Leisure Services  ,25.03.2019,16.04.2019,GPC03190000233,200.00
Stockport MBC,Services to People,Childrens & Educational Services,"EATING PLACES, RESTAURANTS",Publicity and Promotion,Arts & Leisure Services  ,26.03.2019,16.04.2019,GPC03190000234,21.18
Stockport MBC,Services to People,Childrens & Educational Services,FAST FOOD RESTAURANTS,Publicity and Promotion,Arts & Leisure Services  ,26.03.2019,16.04.2019,GPC03190000235,14.96
Stockport MBC,Services to People,Childrens & Educational Services,SPORTING GOODS STORES,Care Payments,Social Community Care Supplies & Services  ,26.03.2019,16.04.2019,GPC03190000236,23.97
Stockport MBC,Services to People,Childrens & Educational Services,"CLUBS-CNTRY,MBRSHIP(ATHLET,REC,SPRTS,PRIVATE GOLF",Publicity and Promotion,Arts & Leisure Services  ,26.03.2019,16.04.2019,GPC03190000237,21.45
Stockport MBC,Services to People,Childrens & Educational Services,"GROCERY STORES, SUPERMARKETS",Care Payments,Social Community Care Supplies & Services  ,25.03.2019,16.04.2019,GPC03190000238,10.00
Stockport MBC,Services to People,Childrens & Educational Services,"GROCERY STORES, SUPERMARKETS",Catering Supplies,Catering Food & Beverages ,22.03.2019,16.04.2019,GPC03190000239,216.94
Stockport MBC,Services to People,Childrens & Educational Services,"GROCERY STORES, SUPERMARKETS",Catering Supplies,Catering Food & Beverages ,24.03.2019,16.04.2019,GPC03190000240,250.41
Stockport MBC,Services to People,Childrens & Educational Services,"BUYING/SHOPPING CLUBS, SERVICES",Publicity and Promotion,Arts & Leisure Services  ,22.03.2019,16.04.2019,GPC03190000241,10.00
Stockport MBC,Services to People,Childrens & Educational Services,"BUYING/SHOPPING CLUBS, SERVICES",Publicity and Promotion,Arts & Leisure Services  ,22.03.2019,16.04.2019,GPC03190000242,64.00
Stockport MBC,Services to People,Childrens & Educational Services,BUS LINES,Publicity and Promotion,Arts & Leisure Services  ,21.03.2019,16.04.2019,GPC03190000243,9.25
Stockport MBC,Services to People,Childrens & Educational Services,"BUILDING MATERIALS, LUMBER STORES",Furniture and Equipment,Environmental Services Technical Equipment ,21.03.2019,16.04.2019,GPC03190000244,87.19
Stockport MBC,Services to People,Childrens & Educational Services,"BUILDING MATERIALS, LUMBER STORES",Furniture and Equipment,Environmental Services Technical Equipment ,21.03.2019,16.04.2019,GPC03190000245,68.75
Stockport MBC,Services to People,Childrens & Educational Services,"EQUIP, FURNITURE, HOME FURNSHNGS STRS (EXCPT APPL)",Furniture and Equipment,Furniture & Soft Furnishings  ,21.03.2019,16.04.2019,GPC03190000246,117.00
Stockport MBC,Services to People,Childrens & Educational Services,BUS LINES,Publicity and Promotion,Arts & Leisure Services  ,20.03.2019,16.04.2019,GPC03190000247,17.60
Stockport MBC,Services to People,Childrens & Educational Services,"ORGANIZATIONS, CHARITABLE AND SOCIAL SERVICES",Furniture and Equipment,Furniture & Soft Furnishings  ,19.03.2019,16.04.2019,GPC03190000248,115.00
Stockport MBC,Services to People,Childrens & Educational Services,FAST FOOD RESTAURANTS,Catering Supplies,Catering Food & Beverages ,15.03.2019,16.04.2019,GPC03190000249,43.20
Stockport MBC,Services to People,Childrens & Educational Services,FAST FOOD RESTAURANTS,Catering Supplies,Catering Food & Beverages ,15.03.2019,16.04.2019,GPC03190000250,10.70
Stockport MBC,Services to People,Childrens & Educational Services,"GROCERY STORES, SUPERMARKETS",Catering Supplies,Catering Food & Beverages ,17.03.2019,16.04.2019,GPC03190000251,252.25
Stockport MBC,Services to People,Childrens & Educational Services,"GROCERY STORES, SUPERMARKETS",Catering Supplies,Catering Food & Beverages ,14.03.2019,16.04.2019,GPC03190000252,226.61
Stockport MBC,Services to People,Childrens & Educational Services,"BUYING/SHOPPING CLUBS, SERVICES",Publicity and Promotion,Arts & Leisure Services  ,14.03.2019,16.04.2019,GPC03190000253,43.00
Stockport MBC,Services to People,Childrens & Educational Services,DIRECT MARKETING-OTHER DIRECT MARKETERS/NOT ELSEW.,Publicity and Promotion,Arts & Leisure Services  ,12.03.2019,16.04.2019,GPC03190000254,8.00
Stockport MBC,Services to People,Childrens & Educational Services,"CABLE, SATELLITE, OTHER PAY TELEVISION, RADIO SVCS",Publicity and Promotion,Arts & Leisure Services  ,10.03.2019,16.04.2019,GPC03190000255,9.99
Stockport MBC,Services to People,Childrens & Educational Services,"GROCERY STORES, SUPERMARKETS",Catering Supplies,Catering Food & Beverages ,08.03.2019,16.04.2019,GPC03190000256,277.04
Stockport MBC,Services to People,Childrens & Educational Services,"GROCERY STORES, SUPERMARKETS",Catering Supplies,Catering Food & Beverages ,10.03.2019,16.04.2019,GPC03190000257,219.48
Stockport MBC,Services to People,Childrens & Educational Services,"CLUBS-CNTRY,MBRSHIP(ATHLET,REC,SPRTS,PRIVATE GOLF",Publicity and Promotion,Arts & Leisure Services  ,09.03.2019,16.04.2019,GPC03190000258,89.94
Stockport MBC,Services to People,Childrens & Educational Services,RECREATION SERVICES (NOT ELSEWHERE CLASSIFIED),Publicity and Promotion,Arts & Leisure Services  ,04.03.2019,16.04.2019,GPC03190000259,-6.00
Stockport MBC,Services to People,Childrens & Educational Services,"GROCERY STORES, SUPERMARKETS",Catering Supplies,Catering Food & Beverages ,03.03.2019,16.04.2019,GPC03190000260,218.90
Stockport MBC,Services to People,Childrens & Educational Services,FAST FOOD RESTAURANTS,Publicity and Promotion,Arts & Leisure Services  ,01.03.2019,16.04.2019,GPC03190000261,44.60
Stockport MBC,Services to People,Childrens & Educational Services,"GROCERY STORES, SUPERMARKETS",Catering Supplies,Catering Food & Beverages ,01.03.2019,16.04.2019,GPC03190000262,280.26
Stockport MBC,Services to People,Childrens & Educational Services,RECREATION SERVICES (NOT ELSEWHERE CLASSIFIED),Publicity and Promotion,Arts & Leisure Services  ,02.03.2019,16.04.2019,GPC03190000263,45.00
Stockport MBC,Corporate and Support Services,Cultural & Related Services,MISCELLANEOUS HOUSE FURNISHING SPECIALTY SHOPS,Furniture and Equipment,Environmental Services Technical Equipment ,29.03.2019,16.04.2019,GPC03190000264,78.99
Stockport MBC,Corporate and Support Services,Cultural & Related Services,"GROCERY STORES, SUPERMARKETS",Expenses and Allowances,Catering  ,09.03.2019,16.04.2019,GPC03190000265,2.40
Stockport MBC,Corporate and Support Services,Cultural & Related Services,SERVICE STATIONS WITH OR WITHOUT ANCILLARY SERVICE,Expenses and Allowances,Catering  ,10.03.2019,16.04.2019,GPC03190000266,2.30
Stockport MBC,Corporate and Support Services,Cultural & Related Services,"GROCERY STORES, SUPERMARKETS",Expenses and Allowances,Catering  ,09.03.2019,16.04.2019,GPC03190000267,5.67
Stockport MBC,Corporate and Support Services,Cultural & Related Services,"GROCERY STORES, SUPERMARKETS",Expenses and Allowances,Catering  ,12.03.2019,16.04.2019,GPC03190000268,42.50
Stockport MBC,Corporate and Support Services,Cultural & Related Services,"GROCERY STORES, SUPERMARKETS",Expenses and Allowances,Catering  ,12.03.2019,16.04.2019,GPC03190000269,98.00
Stockport MBC,Corporate and Support Services,Cultural & Related Services,"GROCERY STORES, SUPERMARKETS",Expenses and Allowances,Catering  ,12.03.2019,16.04.2019,GPC03190000270,85.50
Stockport MBC,Corporate and Support Services,Cultural & Related Services,"GROCERY STORES, SUPERMARKETS",Expenses and Allowances,Catering  ,09.03.2019,16.04.2019,GPC03190000271,6.15
Stockport MBC,Corporate and Support Services,Cultural & Related Services,"GROCERY STORES, SUPERMARKETS",Expenses and Allowances,Catering  ,10.03.2019,16.04.2019,GPC03190000272,7.20
Stockport MBC,Corporate and Support Services,Cultural & Related Services,DISCOUNT STORES,Expenses and Allowances,Catering  ,07.03.2019,16.04.2019,GPC03190000273,4.99
Stockport MBC,Services to People,Adult Social Care,"ORGANIZATIONS, CHARITABLE AND SOCIAL SERVICES",Expenses and Allowances,Human Resources Training & Conferences ,29.03.2019,16.04.2019,GPC03190000274,499.00
Stockport MBC,Services to People,Adult Social Care,AUTOMOBILE PARKING LOTS AND GARAGES,Travelling Expenses,Human Resources Travel & Subsistence ,25.03.2019,16.04.2019,GPC03190000275,3.50
Stockport MBC,Services to People,Adult Social Care,PASSENGER RAILWAYS,Travelling Expenses,Human Resources Travel & Subsistence ,25.03.2019,16.04.2019,GPC03190000276,6.30
Stockport MBC,Services to People,Adult Social Care,TRAVELODGE,Travelling Expenses,Human Resources Travel & Subsistence ,20.03.2019,16.04.2019,GPC03190000277,9.95
Stockport MBC,Services to People,Adult Social Care,PASSENGER RAILWAYS,Travelling Expenses,Human Resources Travel & Subsistence ,20.03.2019,16.04.2019,GPC03190000278,5.00
Stockport MBC,Services to People,Adult Social Care,LIMOUSINES AND TAXICABS,Leasing /Transport Hire,Vehicle Management Leasing ,20.03.2019,16.04.2019,GPC03190000279,15.00
Stockport MBC,Services to People,Adult Social Care,PASSENGER RAILWAYS,Travelling Expenses,Human Resources Travel & Subsistence ,14.03.2019,16.04.2019,GPC03190000280,6.30
Stockport MBC,Services to People,Adult Social Care,AUTOMOBILE PARKING LOTS AND GARAGES,Travelling Expenses,Human Resources Travel & Subsistence ,12.03.2019,16.04.2019,GPC03190000281,3.50
Stockport MBC,Services to People,Adult Social Care,AUTOMOBILE PARKING LOTS AND GARAGES,Travelling Expenses,Human Resources Travel & Subsistence ,07.03.2019,16.04.2019,GPC03190000282,3.50
Stockport MBC,Services to People,Adult Social Care,PASSENGER RAILWAYS,Travelling Expenses,Human Resources Travel & Subsistence ,07.03.2019,16.04.2019,GPC03190000283,8.20
Stockport MBC,Services to People,Adult Social Care,AUTOMOBILE PARKING LOTS AND GARAGES,Travelling Expenses,Human Resources Travel & Subsistence ,06.03.2019,16.04.2019,GPC03190000284,13.00
Stockport MBC,Services to People,Childrens & Educational Services,MISCELLANEOUS AND SPECIALTY RETAIL STORES,Furniture and Equipment,Environmental Services Technical Equipment ,29.03.2019,16.04.2019,GPC03190000285,4.03
Stockport MBC,Services to People,Childrens & Educational Services,MISCELLANEOUS AND SPECIALTY RETAIL STORES,Furniture and Equipment,Environmental Services Technical Equipment ,29.03.2019,16.04.2019,GPC03190000286,4.02
Stockport MBC,Services to People,Childrens & Educational Services,MISCELLANEOUS AND SPECIALTY RETAIL STORES,Furniture and Equipment,Environmental Services Technical Equipment ,29.03.2019,16.04.2019,GPC03190000287,4.02
Stockport MBC,Services to People,Childrens & Educational Services,MISCELLANEOUS AND SPECIALTY RETAIL STORES,Furniture and Equipment,Environmental Services Technical Equipment ,29.03.2019,16.04.2019,GPC03190000288,4.02
Stockport MBC,Services to People,Childrens & Educational Services,MISCELLANEOUS AND SPECIALTY RETAIL STORES,Furniture and Equipment,Environmental Services Technical Equipment ,29.03.2019,16.04.2019,GPC03190000289,4.02
Stockport MBC,Services to People,Childrens & Educational Services,MISCELLANEOUS AND SPECIALTY RETAIL STORES,Furniture and Equipment,Environmental Services Technical Equipment ,29.03.2019,16.04.2019,GPC03190000290,4.02
Stockport MBC,Services to People,Childrens & Educational Services,MISCELLANEOUS AND SPECIALTY RETAIL STORES,Furniture and Equipment,Environmental Services Technical Equipment ,29.03.2019,16.04.2019,GPC03190000291,4.02
Stockport MBC,Services to People,Childrens & Educational Services,MISCELLANEOUS AND SPECIALTY RETAIL STORES,Furniture and Equipment,Environmental Services Technical Equipment ,29.03.2019,16.04.2019,GPC03190000292,4.02
Stockport MBC,Services to People,Childrens & Educational Services,MISCELLANEOUS AND SPECIALTY RETAIL STORES,Furniture and Equipment,Environmental Services Technical Equipment ,29.03.2019,16.04.2019,GPC03190000293,4.03
Stockport MBC,Services to People,Childrens & Educational Services,MISCELLANEOUS AND SPECIALTY RETAIL STORES,Furniture and Equipment,Environmental Services Technical Equipment ,29.03.2019,16.04.2019,GPC03190000294,4.02
Stockport MBC,Services to People,Childrens & Educational Services,MISCELLANEOUS AND SPECIALTY RETAIL STORES,Furniture and Equipment,Environmental Services Technical Equipment ,29.03.2019,16.04.2019,GPC03190000295,4.02
Stockport MBC,Services to People,Childrens & Educational Services,MISCELLANEOUS AND SPECIALTY RETAIL STORES,Furniture and Equipment,Environmental Services Technical Equipment ,30.03.2019,16.04.2019,GPC03190000296,4.02
Stockport MBC,Services to People,Childrens & Educational Services,MISCELLANEOUS AND SPECIALTY RETAIL STORES,Furniture and Equipment,Environmental Services Technical Equipment ,30.03.2019,16.04.2019,GPC03190000297,4.03
Stockport MBC,Services to People,Childrens & Educational Services,MISCELLANEOUS AND SPECIALTY RETAIL STORES,Furniture and Equipment,Environmental Services Technical Equipment ,29.03.2019,16.04.2019,GPC03190000298,4.02
Stockport MBC,Services to People,Childrens & Educational Services,MISCELLANEOUS AND SPECIALTY RETAIL STORES,Furniture and Equipment,Environmental Services Technical Equipment ,29.03.2019,16.04.2019,GPC03190000299,4.02
Stockport MBC,Services to People,Childrens & Educational Services,MISCELLANEOUS AND SPECIALTY RETAIL STORES,Furniture and Equipment,Environmental Services Technical Equipment ,29.03.2019,16.04.2019,GPC03190000300,4.02
Stockport MBC,Services to People,Childrens & Educational Services,DISCOUNT STORES,Furniture and Equipment,Environmental Services Technical Equipment ,25.03.2019,16.04.2019,GPC03190000301,59.91
Stockport MBC,Services to People,Childrens & Educational Services,"CLUBS-CNTRY,MBRSHIP(ATHLET,REC,SPRTS,PRIVATE GOLF",Fees and Charges,Education  ,25.03.2019,16.04.2019,GPC03190000302,20.00
Stockport MBC,Services to People,Childrens & Educational Services,"GROCERY STORES, SUPERMARKETS",Furniture and Equipment,Environmental Services Technical Equipment ,25.03.2019,16.04.2019,GPC03190000303,20.00
Stockport MBC,Services to People,Childrens & Educational Services,"GROCERY STORES, SUPERMARKETS",Furniture and Equipment,Environmental Services Technical Equipment ,22.03.2019,16.04.2019,GPC03190000304,21.44
Stockport MBC,Services to People,Childrens & Educational Services,"GROCERY STORES, SUPERMARKETS",Furniture and Equipment,Environmental Services Technical Equipment ,22.03.2019,16.04.2019,GPC03190000305,30.10
Stockport MBC,Services to People,Childrens & Educational Services,LAWN AND GARDEN SUPPLY STORES,Furniture and Equipment,Environmental Services Technical Equipment ,23.03.2019,16.04.2019,GPC03190000306,30.00
Stockport MBC,Services to People,Childrens & Educational Services,BOOK STORES,Furniture and Equipment,Environmental Services Technical Equipment ,24.03.2019,16.04.2019,GPC03190000307,27.47
Stockport MBC,Services to People,Childrens & Educational Services,"GROCERY STORES, SUPERMARKETS",Furniture and Equipment,Environmental Services Technical Equipment ,22.03.2019,16.04.2019,GPC03190000308,21.04
Stockport MBC,Services to People,Childrens & Educational Services,DISCOUNT STORES,Furniture and Equipment,Environmental Services Technical Equipment ,20.03.2019,16.04.2019,GPC03190000309,48.24
Stockport MBC,Services to People,Childrens & Educational Services,BOOK STORES,Furniture and Equipment,Environmental Services Technical Equipment ,21.03.2019,16.04.2019,GPC03190000310,13.93
Stockport MBC,Services to People,Childrens & Educational Services,DIRECT MARKETING-OTHER DIRECT MARKETERS/NOT ELSEW.,Furniture and Equipment,Environmental Services Technical Equipment ,16.03.2019,16.04.2019,GPC03190000311,13.24
Stockport MBC,Services to People,Childrens & Educational Services,BOOK STORES,Furniture and Equipment,Environmental Services Technical Equipment ,11.03.2019,16.04.2019,GPC03190000312,7.47
Stockport MBC,Services to People,Childrens & Educational Services,"GROCERY STORES, SUPERMARKETS",Furniture and Equipment,Environmental Services Technical Equipment ,08.03.2019,16.04.2019,GPC03190000313,12.32
Stockport MBC,Services to People,Childrens & Educational Services,BOOK STORES,Furniture and Equipment,Environmental Services Technical Equipment ,11.03.2019,16.04.2019,GPC03190000314,12.92
Stockport MBC,Services to People,Childrens & Educational Services,BOOK STORES,Furniture and Equipment,Environmental Services Technical Equipment ,07.03.2019,16.04.2019,GPC03190000315,6.59
Stockport MBC,Services to People,Childrens & Educational Services,BOOK STORES,Furniture and Equipment,Environmental Services Technical Equipment ,07.03.2019,16.04.2019,GPC03190000316,18.81
Stockport MBC,Services to People,Childrens & Educational Services,BOOK STORES,Furniture and Equipment,Environmental Services Technical Equipment ,05.03.2019,16.04.2019,GPC03190000317,4.45
Stockport MBC,Services to People,Childrens & Educational Services,"COLLEGES, UNIV, PRO SCHOOLS, JUNIOR COLLEGES",Staff Training,Human Resources  ,04.03.2019,16.04.2019,GPC03190000318,14.00
Stockport MBC,Services to People,Childrens & Educational Services,"COLLEGES, UNIV, PRO SCHOOLS, JUNIOR COLLEGES",Staff Training,Human Resources  ,04.03.2019,16.04.2019,GPC03190000319,14.00
Stockport MBC,Services to People,Childrens & Educational Services,"COLLEGES, UNIV, PRO SCHOOLS, JUNIOR COLLEGES",Staff Training,Human Resources  ,04.03.2019,16.04.2019,GPC03190000320,14.00
Stockport MBC,Services to People,Childrens & Educational Services,"GROCERY STORES, SUPERMARKETS",Catering Supplies,Catering Food & Beverages ,01.03.2019,16.04.2019,GPC03190000321,16.00
Stockport MBC,Services to People,Childrens & Educational Services,"GROCERY STORES, SUPERMARKETS",Furniture and Equipment,Environmental Services Technical Equipment ,01.03.2019,16.04.2019,GPC03190000322,8.80
Stockport MBC,Corporate and Support Services,Planning Services,"GROCERY STORES, SUPERMARKETS",Catering Supplies,Catering Food & Beverages ,25.03.2019,16.04.2019,GPC03190000323,11.86
Stockport MBC,Corporate and Support Services,Central Support Costs,DISCOUNT STORES,Furniture and Equipment,Environmental Services Technical Equipment ,14.03.2019,16.04.2019,GPC03190000324,39.99
Stockport MBC,Corporate and Support Services,Central Support Costs,DISCOUNT STORES,Furniture and Equipment,Environmental Services Technical Equipment ,14.03.2019,16.04.2019,GPC03190000325,39.99
Stockport MBC,Corporate and Support Services,Central Support Costs,DIRECT MARKETING-CONTINUITY/SUBSCRIPTION MERCHANTS,Information and Communications Technology,Information Communication Technology  ,31.03.2019,16.04.2019,GPC03190000326,4.45
Stockport MBC,Corporate and Support Services,Central Support Costs,"COMPUTERS, COMPUTER PERIPHERAL EQUIPMENT, SOFTWARE",Information and Communications Technology,Information Communication Technology  ,28.03.2019,16.04.2019,GPC03190000327,161.38
Stockport MBC,Corporate and Support Services,Central Support Costs,COMPUTER NETWORK/INFORMATION SERVICES,Information and Communications Technology,Information Communication Technology  ,25.03.2019,16.04.2019,GPC03190000328,16.78
Stockport MBC,Corporate and Support Services,Central Support Costs,LAWN AND GARDEN SUPPLY STORES,Information and Communications Technology,Information Communication Technology  ,22.03.2019,16.04.2019,GPC03190000329,11.95
Stockport MBC,Corporate and Support Services,Central Support Costs,PASSENGER RAILWAYS,Travelling Expenses,Human Resources Travel & Subsistence ,21.03.2019,16.04.2019,GPC03190000330,6.30
Stockport MBC,Corporate and Support Services,Central Support Costs,COMPUTER NETWORK/INFORMATION SERVICES,Information and Communications Technology,Information Communication Technology  ,21.03.2019,16.04.2019,GPC03190000331,43.14
Stockport MBC,Corporate and Support Services,Central Support Costs,AUTOMOBILE PARKING LOTS AND GARAGES,Travelling Expenses,Human Resources Travel & Subsistence ,19.03.2019,16.04.2019,GPC03190000332,3.80
Stockport MBC,Corporate and Support Services,Central Support Costs,COMPUTER SOFTWARE STORES,Information and Communications Technology,Information Communication Technology  ,13.03.2019,16.04.2019,GPC03190000333,9.47
Stockport MBC,Corporate and Support Services,Central Support Costs,PASSENGER RAILWAYS,Travelling Expenses,Human Resources Travel & Subsistence ,12.03.2019,16.04.2019,GPC03190000334,12.60
Stockport MBC,Corporate and Support Services,Central Support Costs,ELECTRONIC SALES,Information and Communications Technology,Information Communication Technology  ,08.03.2019,16.04.2019,GPC03190000335,19.61
Stockport MBC,Corporate and Support Services,Central Support Costs,COMPUTER SOFTWARE STORES,Information and Communications Technology,Information Communication Technology  ,10.03.2019,16.04.2019,GPC03190000336,769.77
Stockport MBC,Corporate and Support Services,Central Support Costs,COMPUTER SOFTWARE STORES,Information and Communications Technology,Information Communication Technology  ,05.03.2019,16.04.2019,GPC03190000337,157.19
Stockport MBC,Corporate and Support Services,Central Support Costs,"COMPUTERS, COMPUTER PERIPHERAL EQUIPMENT, SOFTWARE",Information and Communications Technology,Information Communication Technology  ,01.03.2019,16.04.2019,GPC03190000338,159.72
Stockport MBC,Corporate and Support Services,Central Support Costs,BUSINESS SERVICES-NOT ELSEWHERE CLASSIFIED,Information and Communications Technology,Information Communication Technology  ,03.03.2019,16.04.2019,GPC03190000339,821.28
Stockport MBC,Corporate and Support Services,Central Support Costs,COMPUTER NETWORK/INFORMATION SERVICES,Information and Communications Technology,Information Communication Technology  ,02.03.2019,16.04.2019,GPC03190000340,8.39
Stockport MBC,Corporate and Support Services,Cultural & Related Services,DIRECT MARKETING-OTHER DIRECT MARKETERS/NOT ELSEW.,Library Equipment,Education Library Books ,06.03.2019,16.04.2019,GPC03190000341,10.98
Stockport MBC,Corporate and Support Services,Cultural & Related Services,DIRECT MARKETING-OTHER DIRECT MARKETERS/NOT ELSEW.,Library Equipment,Education Library Books ,05.03.2019,16.04.2019,GPC03190000342,12.38
Stockport MBC,Services to People,Childrens & Educational Services,"GROCERY STORES, SUPERMARKETS",Catering Supplies,Catering Food & Beverages ,20.03.2019,16.04.2019,GPC03190000343,40.54
Stockport MBC,Services to People,Childrens & Educational Services,COMPUTER SOFTWARE STORES,Furniture and Equipment,Environmental Services Technical Equipment ,20.03.2019,16.04.2019,GPC03190000344,2.50
Stockport MBC,Services to People,Childrens & Educational Services,"GROCERY STORES, SUPERMARKETS",Catering Supplies,Catering Food & Beverages ,19.03.2019,16.04.2019,GPC03190000345,53.44
Stockport MBC,Services to People,Childrens & Educational Services,"GROCERY STORES, SUPERMARKETS",Catering Supplies,Catering Food & Beverages ,13.03.2019,16.04.2019,GPC03190000346,-1.41
Stockport MBC,Services to People,Childrens & Educational Services,"GROCERY STORES, SUPERMARKETS",Catering Supplies,Catering Food & Beverages ,13.03.2019,16.04.2019,GPC03190000347,54.78
Stockport MBC,Services to People,Childrens & Educational Services,"GROCERY STORES, SUPERMARKETS",Catering Supplies,Catering Food & Beverages ,05.03.2019,16.04.2019,GPC03190000348,46.71
Stockport MBC,Services to People,Childrens & Educational Services,"GROCERY STORES, SUPERMARKETS",Catering Supplies,Catering Food & Beverages ,01.03.2019,16.04.2019,GPC03190000349,5.55
Stockport MBC,Corporate and Support Services,Cultural & Related Services,DEPARTMENT STORES,Furniture and Equipment,Environmental Services Technical Equipment ,28.03.2019,16.04.2019,GPC03190000350,144.00
Stockport MBC,Corporate and Support Services,Cultural & Related Services,DEPARTMENT STORES,Furniture and Equipment,Environmental Services Technical Equipment ,28.03.2019,16.04.2019,GPC03190000351,144.00
Stockport MBC,Corporate and Support Services,Cultural & Related Services,DEPARTMENT STORES,Furniture and Equipment,Environmental Services Technical Equipment ,28.03.2019,16.04.2019,GPC03190000352,144.00
Stockport MBC,Services to People,Childrens & Educational Services,PASSENGER RAILWAYS,Travelling Expenses,Human Resources Travel & Subsistence ,27.03.2019,16.04.2019,GPC03190000353,6.30
Stockport MBC,Services to People,Childrens & Educational Services,GOVERNMENT SERVICES-NOT ELSEWHERE CLASSIFIED,Travelling Expenses,Human Resources Travel & Subsistence ,27.03.2019,16.04.2019,GPC03190000354,1.20
Stockport MBC,Services to People,Childrens & Educational Services,MISCELLANEOUS AND SPECIALTY RETAIL STORES,Library Equipment,Education Library Books ,22.03.2019,16.04.2019,GPC03190000355,145.89
Stockport MBC,Services to People,Childrens & Educational Services,DIRECT MARKETING-OTHER DIRECT MARKETERS/NOT ELSEW.,Library Equipment,Education Library Books ,23.03.2019,16.04.2019,GPC03190000356,26.92
Stockport MBC,Services to People,Childrens & Educational Services,BOOK STORES,Library Equipment,Education Library Books ,08.03.2019,16.04.2019,GPC03190000357,11.37
Stockport MBC,Services to People,Childrens & Educational Services,DIRECT MARKETING-OTHER DIRECT MARKETERS/NOT ELSEW.,Library Equipment,Education Library Books ,11.03.2019,16.04.2019,GPC03190000358,15.82
Stockport MBC,Corporate and Support Services,Central Support Costs,BOOK STORES,Furniture and Equipment,Environmental Services Technical Equipment ,26.03.2019,16.04.2019,GPC03190000359,269.99
Stockport MBC,Corporate and Support Services,Central Support Costs,BOOK STORES,Furniture and Equipment,Environmental Services Technical Equipment ,20.03.2019,16.04.2019,GPC03190000360,12.60
Stockport MBC,Corporate and Support Services,Central Support Costs,COMPUTER SOFTWARE STORES,Furniture and Equipment,Environmental Services Technical Equipment ,19.03.2019,16.04.2019,GPC03190000361,15.15
Stockport MBC,Corporate and Support Services,Central Support Costs,COMPUTER SOFTWARE STORES,Furniture and Equipment,Environmental Services Technical Equipment ,12.03.2019,16.04.2019,GPC03190000362,258.00
Stockport MBC,Corporate and Support Services,Corporate & Democratic Core,PASSENGER RAILWAYS,Travelling Expenses,Human Resources Travel & Subsistence ,20.03.2019,16.04.2019,GPC03190000363,502.50
Stockport MBC,Services to Place,Cultural & Related Services,PASSENGER RAILWAYS,Travelling Expenses,Human Resources Travel & Subsistence ,19.03.2019,16.04.2019,GPC03190000364,44.50
Stockport MBC,Services to Place,Highways & Transport Services,PASSENGER RAILWAYS,Travelling Expenses,Human Resources Travel & Subsistence ,18.03.2019,16.04.2019,GPC03190000365,102.65
Stockport MBC,Corporate and Support Services,Corporate & Democratic Core,PASSENGER RAILWAYS,Travelling Expenses,Human Resources Travel & Subsistence ,18.03.2019,16.04.2019,GPC03190000366,153.10
Stockport MBC,Services to Place,Environmental & Regulatory Services,HOME SUPPLY WAREHOUSE STORES,Furniture and Equipment,Environmental Services Technical Equipment ,13.03.2019,16.04.2019,GPC03190000367,99.15
Stockport MBC,Services to Place,Environmental & Regulatory Services,PASSENGER RAILWAYS,Travelling Expenses,Human Resources Travel & Subsistence ,14.03.2019,16.04.2019,GPC03190000368,72.50
Stockport MBC,Services to Place,Cultural & Related Services,PREMIER INN,Publicity and Promotion,Arts & Leisure Services  ,13.03.2019,16.04.2019,GPC03190000369,242.50
Stockport MBC,Services to Place,Cultural & Related Services,PREMIER INN,Publicity and Promotion,Arts & Leisure Services  ,13.03.2019,16.04.2019,GPC03190000370,310.00
Stockport MBC,Services to Place,Highways & Transport Services,"LODGING-HOTELS,MOTELS,RESORTS-NOT CLASSIFIED",Expenses and Allowances,Human Resources Travel & Subsistence ,14.03.2019,16.04.2019,GPC03190000371,25.30
Stockport MBC,Services to Place,Highways & Transport Services,"LODGING-HOTELS,MOTELS,RESORTS-NOT CLASSIFIED",Expenses and Allowances,Human Resources Travel & Subsistence ,08.03.2019,16.04.2019,GPC03190000372,-67.45
Stockport MBC,Services to Place,Highways & Transport Services,"LODGING-HOTELS,MOTELS,RESORTS-NOT CLASSIFIED",Expenses and Allowances,Human Resources Travel & Subsistence ,07.03.2019,16.04.2019,GPC03190000373,17.50
Stockport MBC,Services to Place,Highways & Transport Services,"LODGING-HOTELS,MOTELS,RESORTS-NOT CLASSIFIED",Expenses and Allowances,Human Resources Travel & Subsistence ,06.03.2019,16.04.2019,GPC03190000374,34.30
Stockport MBC,Services to Place,Highways & Transport Services,"LODGING-HOTELS,MOTELS,RESORTS-NOT CLASSIFIED",Expenses and Allowances,Human Resources Travel & Subsistence ,05.03.2019,16.04.2019,GPC03190000375,22.30
Stockport MBC,Corporate and Support Services,Central Support Costs,"LODGING-HOTELS,MOTELS,RESORTS-NOT CLASSIFIED",Travelling Expenses,Human Resources Travel & Subsistence ,04.03.2019,16.04.2019,GPC03190000376,45.00
Stockport MBC,Corporate and Support Services,Central Support Costs,"LODGING-HOTELS,MOTELS,RESORTS-NOT CLASSIFIED",Travelling Expenses,Human Resources Travel & Subsistence ,04.03.2019,16.04.2019,GPC03190000377,45.00
Stockport MBC,Corporate and Support Services,Cultural & Related Services,DEPARTMENT STORES,Information and Communications Technology,Information Communication Technology  ,28.03.2019,16.04.2019,GPC03190000378,200.00
Stockport MBC,Corporate and Support Services,Cultural & Related Services,DEPARTMENT STORES,Information and Communications Technology,Information Communication Technology  ,28.03.2019,16.04.2019,GPC03190000379,99.99
Stockport MBC,Corporate and Support Services,Cultural & Related Services,PASSENGER RAILWAYS,Travelling Expenses,Human Resources Travel & Subsistence ,01.04.2019,16.04.2019,GPC03190000380,165.60
Stockport MBC,Corporate and Support Services,Corporate & Democratic Core,PASSENGER RAILWAYS,Travelling Expenses,Human Resources Travel & Subsistence ,28.03.2019,16.04.2019,GPC03190000381,8.95
Stockport MBC,Corporate and Support Services,Corporate & Democratic Core,PASSENGER RAILWAYS,Travelling Expenses,Human Resources Travel & Subsistence ,26.03.2019,16.04.2019,GPC03190000382,177.50
Stockport MBC,Corporate and Support Services,Central Support Costs,PASSENGER RAILWAYS,Travelling Expenses,Human Resources Travel & Subsistence ,26.03.2019,16.04.2019,GPC03190000383,42.55
Stockport MBC,Corporate and Support Services,Central Support Costs,PASSENGER RAILWAYS,Travelling Expenses,Human Resources Travel & Subsistence ,26.03.2019,16.04.2019,GPC03190000384,25.15
Stockport MBC,Services to Place,Environmental & Regulatory Services,PROFESSIONAL SERVICES-NOT ELSEWHERE CLASSIFIED,Information and Communications Technology,Information Communication Technology  ,26.03.2019,16.04.2019,GPC03190000385,30.00
Stockport MBC,Corporate and Support Services,Central Services to the public,PASSENGER RAILWAYS,Travelling Expenses,Human Resources Travel & Subsistence ,25.03.2019,16.04.2019,GPC03190000386,25.75
Stockport MBC,Corporate and Support Services,Central Support Costs,PASSENGER RAILWAYS,Travelling Expenses,Human Resources Travel & Subsistence ,25.03.2019,16.04.2019,GPC03190000387,24.15
Stockport MBC,Services to Place,Environmental & Regulatory Services,PASSENGER RAILWAYS,Travelling Expenses,Human Resources Travel & Subsistence ,15.03.2019,16.04.2019,GPC03190000388,-80.60
Stockport MBC,Services to Place,Environmental & Regulatory Services,PASSENGER RAILWAYS,Travelling Expenses,Human Resources Travel & Subsistence ,11.03.2019,16.04.2019,GPC03190000389,160.15
Stockport MBC,Services to Place,Highways & Transport Services,PASSENGER RAILWAYS,Travelling Expenses,Human Resources Travel & Subsistence ,11.03.2019,16.04.2019,GPC03190000390,217.10
Stockport MBC,Services to Place,Childrens & Educational Services,PASSENGER RAILWAYS,Travelling Expenses,Human Resources Travel & Subsistence ,11.03.2019,16.04.2019,GPC03190000391,26.75
Stockport MBC,Corporate and Support Services,Corporate & Democratic Core,PASSENGER RAILWAYS,Travelling Expenses,Human Resources Travel & Subsistence ,07.03.2019,16.04.2019,GPC03190000392,45.40
Stockport MBC,Services to Place,Environmental & Regulatory Services,PASSENGER RAILWAYS,Travelling Expenses,Human Resources Travel & Subsistence ,07.03.2019,16.04.2019,GPC03190000393,79.30
Stockport MBC,Corporate and Support Services,Corporate & Democratic Core,PASSENGER RAILWAYS,Travelling Expenses,Human Resources Travel & Subsistence ,07.03.2019,16.04.2019,GPC03190000394,352.50
Stockport MBC,Corporate and Support Services,Corporate & Democratic Core,HOLIDAY INNS,Staff Training,Human Resources  ,06.03.2019,16.04.2019,GPC03190000395,259.90
Stockport MBC,Corporate and Support Services,Corporate & Democratic Core,PASSENGER RAILWAYS,Travelling Expenses,Human Resources Travel & Subsistence ,05.03.2019,16.04.2019,GPC03190000396,35.50
Stockport MBC,Corporate and Support Services,Central Support Costs,PASSENGER RAILWAYS,Travelling Expenses,Human Resources Travel & Subsistence ,04.03.2019,16.04.2019,GPC03190000397,221.05
Stockport MBC,Corporate and Support Services,Central Support Costs,PASSENGER RAILWAYS,Travelling Expenses,Human Resources Travel & Subsistence ,04.03.2019,16.04.2019,GPC03190000398,22.25
Stockport MBC,Services to Place,Planning Services,PASSENGER RAILWAYS,Travelling Expenses,Human Resources Travel & Subsistence ,04.03.2019,16.04.2019,GPC03190000399,308.45
Stockport MBC,Services to Place,Cultural & Related Services,PASSENGER RAILWAYS,Travelling Expenses,Human Resources Travel & Subsistence ,04.03.2019,16.04.2019,GPC03190000400,188.50
Stockport MBC,Services to People,Adult Social Care,"GROCERY STORES, SUPERMARKETS",Catering Supplies,Catering Food & Beverages ,01.04.2019,16.04.2019,GPC03190000401,16.02
Stockport MBC,Services to People,Adult Social Care,DISCOUNT STORES,Catering Supplies,Catering Food & Beverages ,25.03.2019,16.04.2019,GPC03190000402,33.55
Stockport MBC,Services to People,Adult Social Care,DISCOUNT STORES,Catering Supplies,Catering Food & Beverages ,20.03.2019,16.04.2019,GPC03190000403,19.48
Stockport MBC,Services to People,Adult Social Care,DISCOUNT STORES,Catering Supplies,Catering Food & Beverages ,18.03.2019,16.04.2019,GPC03190000404,15.26
Stockport MBC,Services to People,Adult Social Care,DISCOUNT STORES,Catering Supplies,Catering Food & Beverages ,11.03.2019,16.04.2019,GPC03190000405,50.43
Stockport MBC,Services to People,Adult Social Care,DISCOUNT STORES,Catering Supplies,Catering Food & Beverages ,04.03.2019,16.04.2019,GPC03190000406,55.44
